[Event "*** MasterClass Titled Tuesday Blitz"]
[Site "Chess.com"]
[Date "2017.11.07"]
[Round "2"]
[White "chesssharkattack"]
[Black "Vrolijk"]
[Result "0-1"]
[WhiteElo "2379"]
[BlackElo "2476"]
[TimeControl "180+2"]
[EndTime "14:29:49 PST"]
[Termination "Vrolijk won by resignation"]

1. e4 {[%clk 0:03:01.9]} 1... e5 {[%clk 0:02:59.7]} 2. Nf3 {[%clk 0:03:01.7]}
2... Nc6 {[%clk 0:03:01.2]} 3. d4 {[%clk 0:03:02.6]} 3... exd4 {[%clk
0:02:58.1]} 4. Nxd4 {[%clk 0:03:04.5]} 4... Bc5 {[%clk 0:02:58.8]} 5. Be3 {[%clk
0:03:05.3]} 5... Qf6 {[%clk 0:02:58.1]} 6. Nb5 {[%clk 0:03:06.1]} 6... Bxe3
{[%clk 0:02:56]} 7. fxe3 {[%clk 0:03:08]} 7... Qh4+ {[%clk 0:02:57.4]} 8. g3
{[%clk 0:03:08.4]} 8... Qd8 {[%clk 0:02:59]} 9. Qg4 {[%clk 0:03:08.9]} 9... Kf8
{[%clk 0:03:00.5]} 10. Qf4 {[%clk 0:03:04.4]} 10... d6 {[%clk 0:03:01.2]} 11.
Bc4 {[%clk 0:03:04.3]} 11... Ne5 {[%clk 0:03:01.2]} 12. O-O {[%clk 0:03:01.7]}
12... Nf6 {[%clk 0:02:56.1]} 13. Nd2 {[%clk 0:02:46.5]} 13... Bh3 {[%clk
0:02:48.4]} 14. Rfe1 {[%clk 0:02:21.2]} 14... Qe7 {[%clk 0:02:47]} 15. Bd3
{[%clk 0:02:06.8]} 15... Ng6 {[%clk 0:02:39.5]} 16. Qf3 {[%clk 0:01:54.1]} 16...
h5 {[%clk 0:02:38.3]} 17. Nd4 {[%clk 0:01:46.7]} 17... Ne5 {[%clk 0:02:36]} 18.
Qf4 {[%clk 0:01:42.1]} 18... h4 {[%clk 0:02:19.2]} 19. gxh4 {[%clk 0:01:39.5]}
19... Nh5 {[%clk 0:01:44]} 20. Qf2 {[%clk 0:01:38.2]} 20... Ng4 {[%clk
0:01:44.3]} 21. Qf3 {[%clk 0:01:35.4]} 21... Qxh4 {[%clk 0:01:22.8]} 22. Nf5
{[%clk 0:01:36.2]} 22... Qg5 {[%clk 0:01:23.2]} 23. Qxh3 {[%clk 0:01:26.5]}
23... Nxe3+ {[%clk 0:01:22.8]} 24. Kf2 {[%clk 0:01:19]} 24... Ng4+ {[%clk
0:01:18.1]} 25. Kg1 {[%clk 0:01:14.9]} 25... Ne3+ {[%clk 0:00:59.1]} 26. Kf2
{[%clk 0:01:15.9]} 26... Nxf5 {[%clk 0:00:57.5]} 27. exf5 {[%clk 0:01:12.7]}
27... Qxd2+ {[%clk 0:00:58.3]} 28. Re2 {[%clk 0:01:00.5]} 28... Qf4+ {[%clk
0:00:58.3]} 29. Ke1 {[%clk 0:00:59.9]} 29... Rh6 {[%clk 0:00:44.9]} 30. Rd1
{[%clk 0:00:58.3]} 30... Nf6 {[%clk 0:00:37.7]} 31. Qg3 {[%clk 0:00:57]} 31...
Qxg3+ {[%clk 0:00:37.7]} 32. hxg3 {[%clk 0:00:58.9]} 32... Ng4 {[%clk 0:00:37]}
33. Be4 {[%clk 0:00:57.8]} 33... Rb8 {[%clk 0:00:36.3]} 34. Rd3 {[%clk
0:00:56.1]} 34... Ne5 {[%clk 0:00:36.9]} 35. Rde3 {[%clk 0:00:56.8]} 35... Ke7
{[%clk 0:00:35]} 36. b3 {[%clk 0:00:53.5]} 36... Kf6 {[%clk 0:00:36.1]} 37. c3
{[%clk 0:00:52.9]} 37... c6 {[%clk 0:00:37.2]} 38. Bc2 {[%clk 0:00:54]} 38...
Rd8 {[%clk 0:00:37.1]} 39. Kd2 {[%clk 0:00:55]} 39... Rh3 {[%clk 0:00:37.8]} 40.
Kc1 {[%clk 0:00:48.6]} 40... Rdh8 {[%clk 0:00:38.9]} 41. Kb2 {[%clk 0:00:49.4]}
41... Rh2 {[%clk 0:00:39.9]} 42. Rxh2 {[%clk 0:00:18]} 42... Rxh2 {[%clk
0:00:41.8]} 43. c4 {[%clk 0:00:18.8]} 43... d5 {[%clk 0:00:41.9]} 44. Kc3 {[%clk
0:00:19.8]} 44... d4+ {[%clk 0:00:42.2]} 0-1

[Event "*** MasterClass Titled Tuesday Blitz"]
[Site "Chess.com"]
[Date "2017.11.07"]
[Round "2"]
[White "chessking2151"]
[Black "thegreendog"]
[Result "1-0"]
[WhiteElo "2411"]
[BlackElo "2362"]
[TimeControl "180+2"]
[EndTime "14:29:52 PST"]
[Termination "chessking2151 won by resignation"]

1. e4 {[%clk 0:03:01.9]} 1... c5 {[%clk 0:03:01]} 2. Nf3 {[%clk 0:03:01.6]} 2...
d6 {[%clk 0:03:02.3]} 3. d4 {[%clk 0:03:03.2]} 3... cxd4 {[%clk 0:03:03.7]} 4.
Nxd4 {[%clk 0:03:05.1]} 4... Nf6 {[%clk 0:03:05.2]} 5. Nc3 {[%clk 0:03:06]} 5...
g6 {[%clk 0:03:06.7]} 6. Be3 {[%clk 0:03:06.8]} 6... Bg7 {[%clk 0:03:08.2]} 7.
f3 {[%clk 0:03:07.6]} 7... Nc6 {[%clk 0:03:09.6]} 8. Qd2 {[%clk 0:03:08.5]} 8...
O-O {[%clk 0:03:10.9]} 9. O-O-O {[%clk 0:03:09.3]} 9... d5 {[%clk 0:03:12]} 10.
exd5 {[%clk 0:03:07.8]} 10... Nxd5 {[%clk 0:03:12.9]} 11. Nxc6 {[%clk
0:03:08.7]} 11... bxc6 {[%clk 0:03:14.8]} 12. Bd4 {[%clk 0:03:02.8]} 12... Nxc3
{[%clk 0:03:15.7]} 13. Qxc3 {[%clk 0:02:58.6]} 13... Bh6+ {[%clk 0:03:17]} 14.
Be3 {[%clk 0:03:00]} 14... Bxe3+ {[%clk 0:03:17.9]} 15. Qxe3 {[%clk 0:03:01.9]}
15... Qb6 {[%clk 0:03:19.1]} 16. Qxe7 {[%clk 0:02:49]} 16... Be6 {[%clk
0:03:20.2]} 17. Qa3 {[%clk 0:02:40.3]} 17... Rfd8 {[%clk 0:03:21]} 18. Bd3
{[%clk 0:02:26.2]} 18... Rd5 {[%clk 0:03:21.7]} 19. b3 {[%clk 0:02:20.7]} 19...
Qe3+ {[%clk 0:03:22.6]} 20. Kb1 {[%clk 0:02:14]} 20... Qf2 {[%clk 0:03:23.2]}
21. Rhg1 {[%clk 0:01:58.4]} 21... Rad8 {[%clk 0:03:20.8]} 22. Rdf1 {[%clk
0:01:52.1]} 22... Qe3 {[%clk 0:03:17.2]} 23. Qc1 {[%clk 0:01:33.6]} 23... Qd4
{[%clk 0:02:38.5]} 24. Rd1 {[%clk 0:01:14.2]} 24... Qh4 {[%clk 0:02:33.4]} 25.
h3 {[%clk 0:01:08.8]} 25... Qf2 {[%clk 0:02:28]} 26. Rd2 {[%clk 0:00:53.4]}
26... Qe3 {[%clk 0:02:23.3]} 27. Re1 {[%clk 0:00:51.4]} 27... Qb6 {[%clk
0:02:09.9]} 28. Rdd1 {[%clk 0:00:50.1]} 28... a5 {[%clk 0:01:59.9]} 29. Be4
{[%clk 0:00:44.3]} 29... Rxd1 {[%clk 0:01:53.9]} 30. Rxd1 {[%clk 0:00:46.2]}
30... Rxd1 {[%clk 0:01:36.8]} 31. Qxd1 {[%clk 0:00:48.1]} 31... Qf2 {[%clk
0:01:38]} 32. g4 {[%clk 0:00:40.4]} 32... c5 {[%clk 0:01:37.3]} 33. Qd8+ {[%clk
0:00:38.4]} 33... Kg7 {[%clk 0:01:38]} 34. Qxa5 {[%clk 0:00:38.7]} 34... Qf1+
{[%clk 0:01:36]} 35. Kb2 {[%clk 0:00:38.4]} 35... Qf2 {[%clk 0:01:34.8]} 36.
Qc3+ {[%clk 0:00:38.7]} 36... Kh6 {[%clk 0:01:33.6]} 37. a4 {[%clk 0:00:26.6]}
37... Kg5 {[%clk 0:01:34.2]} 38. a5 {[%clk 0:00:27.2]} 38... Bc8 {[%clk
0:01:26.5]} 39. Qe5+ {[%clk 0:00:21.2]} 39... Kh4 {[%clk 0:01:18.6]} 40. Qh8
{[%clk 0:00:21.6]} 40... Qd4+ {[%clk 0:01:15.6]} 41. Qxd4 {[%clk 0:00:22]} 41...
cxd4 {[%clk 0:01:17.5]} 42. b4 {[%clk 0:00:21.1]} 42... Kxh3 {[%clk 0:01:11.7]}
43. b5 {[%clk 0:00:22.1]} 43... f5 {[%clk 0:01:06.9]} 44. gxf5 {[%clk
0:00:22.1]} 44... gxf5 {[%clk 0:01:08.8]} 45. Bc6 {[%clk 0:00:22.8]} 45... Kg3
{[%clk 0:01:08.6]} 46. b6 {[%clk 0:00:23.8]} 46... h5 {[%clk 0:01:03.1]} 47. b7
{[%clk 0:00:19.8]} 47... Bxb7 {[%clk 0:01:03.9]} 48. Bxb7 {[%clk 0:00:21.7]}
48... f4 {[%clk 0:01:01.3]} 49. a6 {[%clk 0:00:21.7]} 49... h4 {[%clk
0:01:02.5]} 50. Bc8 {[%clk 0:00:22.3]} 50... Kxf3 {[%clk 0:00:59.7]} 51. a7
{[%clk 0:00:22.5]} 51... Kg2 {[%clk 0:01:01.1]} 52. a8=Q+ {[%clk 0:00:23.9]}
52... f3 {[%clk 0:01:03]} 53. Bg4 {[%clk 0:00:24.7]} 53... h3 {[%clk 0:01:03.1]}
54. Qxf3+ {[%clk 0:00:25.3]} 54... Kg1 {[%clk 0:01:04.6]} 55. Bxh3 {[%clk
0:00:26.4]} 1-0

[Event "*** MasterClass Titled Tuesday Blitz"]
[Site "Chess.com"]
[Date "2017.11.07"]
[Round "2"]
[White "rubhani"]
[Black "champ2005"]
[Result "0-1"]
[WhiteElo "2265"]
[BlackElo "2460"]
[TimeControl "180+2"]
[EndTime "14:29:53 PST"]
[Termination "champ2005 won on time"]

1. e4 {[%clk 0:03:01.9]} 1... c6 {[%clk 0:03:01]} 2. d4 {[%clk 0:03:02.3]} 2...
d5 {[%clk 0:03:02]} 3. e5 {[%clk 0:03:03.6]} 3... Bf5 {[%clk 0:03:02.4]} 4. Nf3
{[%clk 0:03:04.8]} 4... e6 {[%clk 0:03:03.2]} 5. Be2 {[%clk 0:03:05.9]} 5... c5
{[%clk 0:03:03.3]} 6. O-O {[%clk 0:03:01]} 6... cxd4 {[%clk 0:03:04]} 7. Nxd4
{[%clk 0:03:01.5]} 7... Ne7 {[%clk 0:03:05.2]} 8. c4 {[%clk 0:02:59.3]} 8...
dxc4 {[%clk 0:03:01.1]} 9. Bxc4 {[%clk 0:02:38]} 9... Nbc6 {[%clk 0:03:01.1]}
10. Bb5 {[%clk 0:02:01.5]} 10... Bxb1 {[%clk 0:02:57.6]} 11. Rxb1 {[%clk
0:02:01.1]} 11... Qd5 {[%clk 0:02:53.4]} 12. Be3 {[%clk 0:01:26.2]} 12... a6
{[%clk 0:02:28.5]} 13. Bxc6+ {[%clk 0:01:26.8]} 13... Nxc6 {[%clk 0:02:28.1]}
14. Nxc6 {[%clk 0:01:27.9]} 14... bxc6 {[%clk 0:02:24.5]} 15. Qa4 {[%clk
0:01:21.8]} 15... Be7 {[%clk 0:02:22.1]} 16. Rfd1 {[%clk 0:01:22.4]} 16... Qb5
{[%clk 0:02:22.9]} 17. Qe4 {[%clk 0:01:20.5]} 17... O-O {[%clk 0:02:20.1]} 18.
Rd7 {[%clk 0:01:21.3]} 18... Bc5 {[%clk 0:02:16]} 19. a4 {[%clk 0:01:08.1]}
19... Qb6 {[%clk 0:02:12.3]} 20. Bxc5 {[%clk 0:01:00.9]} 20... Qxc5 {[%clk
0:02:14.2]} 21. b4 {[%clk 0:01:01.9]} 21... Qc3 {[%clk 0:02:03.4]} 22. h4 {[%clk
0:01:02.2]} 22... Rad8 {[%clk 0:01:52.9]} 23. Rbd1 {[%clk 0:01:02.5]} 23... Rxd7
{[%clk 0:01:53.2]} 24. Rxd7 {[%clk 0:01:03.5]} 24... Qa1+ {[%clk 0:01:52.2]} 25.
Kh2 {[%clk 0:01:04.1]} 25... Qxa4 {[%clk 0:01:53.1]} 26. h5 {[%clk 0:01:00.2]}
26... h6 {[%clk 0:01:48.2]} 27. Rd4 {[%clk 0:00:24.1]} 27... a5 {[%clk
0:01:36.8]} 28. bxa5 {[%clk 0:00:25.2]} 28... Qxa5 {[%clk 0:01:38.2]} 29. Rc4
{[%clk 0:00:26.3]} 29... Qd5 {[%clk 0:01:33.3]} 30. Qf4 {[%clk 0:00:21.2]} 30...
c5 {[%clk 0:01:31.4]} 31. Rc3 {[%clk 0:00:22.2]} 31... Rc8 {[%clk 0:01:31.5]}
32. Rg3 {[%clk 0:00:22.8]} 32... Kf8 {[%clk 0:01:26.1]} 33. Rf3 {[%clk
0:00:23.1]} 33... Rc7 {[%clk 0:01:25.3]} 34. Re3 {[%clk 0:00:10.2]} 34... c4
{[%clk 0:01:24]} 35. g4 {[%clk 0:00:10.5]} 35... c3 {[%clk 0:01:17.7]} 36. g5
{[%clk 0:00:11.6]} 36... hxg5 {[%clk 0:01:10.6]} 37. Qxg5 {[%clk 0:00:12.7]}
37... c2 {[%clk 0:01:09.8]} 38. h6 {[%clk 0:00:14]} 38... gxh6 {[%clk
0:00:51.6]} 39. Qxh6+ {[%clk 0:00:15]} 39... Ke8 {[%clk 0:00:51.9]} 0-1

[Event "*** MasterClass Titled Tuesday Blitz"]
[Site "Chess.com"]
[Date "2017.11.07"]
[Round "2"]
[White "ChainsOfFantasia"]
[Black "Genghis_K"]
[Result "0-1"]
[WhiteElo "2489"]
[BlackElo "2651"]
[TimeControl "180+2"]
[EndTime "14:30:16 PST"]
[Termination "Genghis_K won by resignation"]

1. d4 {[%clk 0:03:01.9]} 1... Nf6 {[%clk 0:03:00.7]} 2. c4 {[%clk 0:02:57.1]}
2... e6 {[%clk 0:03:01.1]} 3. Nf3 {[%clk 0:02:57.5]} 3... d5 {[%clk 0:03:01.4]}
4. Nc3 {[%clk 0:02:58]} 4... Bb4 {[%clk 0:03:02.4]} 5. cxd5 {[%clk 0:02:58.6]}
5... exd5 {[%clk 0:03:03.4]} 6. Bg5 {[%clk 0:03:00.2]} 6... h6 {[%clk
0:03:02.5]} 7. Bh4 {[%clk 0:02:58.2]} 7... O-O {[%clk 0:03:03.3]} 8. e3 {[%clk
0:02:58.2]} 8... Bf5 {[%clk 0:03:04.2]} 9. Be2 {[%clk 0:02:58.7]} 9... Nbd7
{[%clk 0:03:04.6]} 10. O-O {[%clk 0:02:59.2]} 10... c6 {[%clk 0:03:03.5]} 11. a3
{[%clk 0:02:59.3]} 11... Bd6 {[%clk 0:03:00.4]} 12. Bg3 {[%clk 0:03:00.2]} 12...
Qe7 {[%clk 0:03:00.2]} 13. Bxd6 {[%clk 0:02:59.4]} 13... Qxd6 {[%clk 0:03:01.1]}
14. b4 {[%clk 0:03:01.3]} 14... Rfe8 {[%clk 0:03:01.3]} 15. b5 {[%clk 0:03:02]}
15... c5 {[%clk 0:03:00.1]} 16. dxc5 {[%clk 0:03:03.9]} 16... Nxc5 {[%clk
0:03:00.2]} 17. Nd4 {[%clk 0:03:02.9]} 17... Bg6 {[%clk 0:03:01.2]} 18. a4
{[%clk 0:02:59.1]} 18... Rac8 {[%clk 0:03:01]} 19. Rc1 {[%clk 0:02:59.4]} 19...
Nce4 {[%clk 0:02:51.2]} 20. Nxe4 {[%clk 0:02:59.4]} 20... Nxe4 {[%clk
0:02:53.1]} 21. Bf3 {[%clk 0:02:40.8]} 21... Rc4 {[%clk 0:02:32.5]} 22. Bxe4
{[%clk 0:02:29.3]} 22... Bxe4 {[%clk 0:02:28.6]} 23. Rxc4 {[%clk 0:02:05]} 23...
dxc4 {[%clk 0:02:28.2]} 24. Qd2 {[%clk 0:02:05.5]} 24... Qa3 {[%clk 0:02:17.2]}
25. Qa5 {[%clk 0:02:03.9]} 25... c3 {[%clk 0:02:10.8]} 26. Qxa7 {[%clk
0:02:01.4]} 26... c2 {[%clk 0:02:05.6]} 27. Nxc2 {[%clk 0:01:55.9]} 27... Bxc2
{[%clk 0:02:07.5]} 28. Qxb7 {[%clk 0:01:57.2]} 28... Qxa4 {[%clk 0:02:03.4]} 29.
b6 {[%clk 0:01:49.4]} 29... Be4 {[%clk 0:02:00.8]} 30. Qc7 {[%clk 0:01:48]}
30... Bd5 {[%clk 0:01:32.5]} 31. Rc1 {[%clk 0:01:08.6]} 31... Qg4 {[%clk
0:01:26.2]} 32. Qg3 {[%clk 0:01:08.9]} 32... Qxg3 {[%clk 0:01:26.4]} 33. hxg3
{[%clk 0:01:10.5]} 33... Rb8 {[%clk 0:01:27.7]} 34. Rb1 {[%clk 0:01:11.5]} 34...
Kf8 {[%clk 0:01:29.3]} 35. f3 {[%clk 0:01:12.7]} 35... Ke7 {[%clk 0:01:30.6]}
36. e4 {[%clk 0:01:14.2]} 36... Be6 {[%clk 0:01:31.5]} 37. Kf2 {[%clk
0:01:15.7]} 37... Kd6 {[%clk 0:01:32.9]} 38. Ke3 {[%clk 0:01:17.2]} 38... Kc6
{[%clk 0:01:31.9]} 39. Kd4 {[%clk 0:01:17.6]} 39... Rxb6 {[%clk 0:01:32.3]} 40.
Rc1+ {[%clk 0:01:19.5]} 40... Kd7 {[%clk 0:01:32.4]} 41. e5 {[%clk 0:01:20.6]}
41... Rb4+ {[%clk 0:01:32.4]} 42. Ke3 {[%clk 0:01:20.4]} 42... Rb2 {[%clk
0:01:32.1]} 43. Rg1 {[%clk 0:01:20]} 43... Bd5 {[%clk 0:01:27.5]} 44. Kf4 {[%clk
0:01:17.6]} 44... Ke6 {[%clk 0:01:28.1]} 45. g4 {[%clk 0:01:18.2]} 45... Rb4+
{[%clk 0:01:28.3]} 46. Kg3 {[%clk 0:01:19.7]} 46... Kxe5 {[%clk 0:01:29.7]} 47.
Re1+ {[%clk 0:01:21.6]} 47... Kf6 {[%clk 0:01:30.8]} 48. Ra1 {[%clk 0:01:23.5]}
48... Be6 {[%clk 0:01:30.7]} 49. Ra7 {[%clk 0:01:24.1]} 49... Rb5 {[%clk
0:01:31.7]} 50. Kh4 {[%clk 0:01:24.7]} 50... Kg6 {[%clk 0:01:32.4]} 51. g3
{[%clk 0:01:25.1]} 51... h5 {[%clk 0:01:22.5]} 52. g5 {[%clk 0:01:19.6]} 52...
Rb4+ {[%clk 0:01:16.1]} 53. f4 {[%clk 0:01:11.6]} 53... Rb1 {[%clk 0:01:16.9]}
54. f5+ {[%clk 0:01:10.8]} 54... Bxf5 {[%clk 0:01:15.7]} 55. g4 {[%clk
0:01:09.9]} 55... Bxg4 {[%clk 0:01:13.8]} 56. Ra6+ {[%clk 0:01:08.9]} 56... Be6
{[%clk 0:01:14.9]} 57. Ra3 {[%clk 0:01:08.4]} 57... Rb4+ {[%clk 0:01:11.4]} 58.
Kg3 {[%clk 0:01:08.4]} 58... h4+ {[%clk 0:01:10.9]} 59. Kh2 {[%clk 0:01:09.3]}
59... Kxg5 {[%clk 0:01:11.9]} 60. Ra5+ {[%clk 0:01:10.4]} 60... Bf5 {[%clk
0:01:12.1]} 61. Ra2 {[%clk 0:01:10.6]} 61... g6 {[%clk 0:01:12]} 62. Kh1 {[%clk
0:01:11.3]} 62... Be4+ {[%clk 0:01:11.7]} 63. Kg1 {[%clk 0:01:11.8]} 63... Rc4
{[%clk 0:01:11.7]} 64. Ra3 {[%clk 0:01:11.6]} 64... f5 {[%clk 0:01:12.3]} 65.
Kh2 {[%clk 0:01:12.5]} 65... Kf4 {[%clk 0:01:12.1]} 66. Kh3 {[%clk 0:01:13.3]}
66... g5 {[%clk 0:01:12.8]} 67. Kh2 {[%clk 0:01:14]} 67... Rc2+ {[%clk
0:01:13.5]} 68. Kg1 {[%clk 0:01:13.3]} 68... g4 {[%clk 0:01:14.1]} 69. Rb3
{[%clk 0:01:14.2]} 69... h3 {[%clk 0:01:14.9]} 70. Ra3 {[%clk 0:01:14.1]} 70...
h2+ {[%clk 0:01:15.7]} 0-1

[Event "*** MasterClass Titled Tuesday Blitz"]
[Site "Chess.com"]
[Date "2017.11.07"]
[Round "2"]
[White "Blitzstream"]
[Black "SCIM"]
[Result "1-0"]
[WhiteElo "2475"]
[BlackElo "2403"]
[TimeControl "180+2"]
[EndTime "14:30:17 PST"]
[Termination "Blitzstream won by resignation"]

1. d4 {[%clk 0:03:01.9]} 1... Nf6 {[%clk 0:03:00.3]} 2. Nf3 {[%clk 0:03:02.3]}
2... g6 {[%clk 0:03:00.4]} 3. e3 {[%clk 0:03:01.1]} 3... Bg7 {[%clk 0:03:01.7]}
4. c4 {[%clk 0:03:01.5]} 4... O-O {[%clk 0:03:02.9]} 5. Nc3 {[%clk 0:03:02.3]}
5... d5 {[%clk 0:03:03.6]} 6. Be2 {[%clk 0:03:01.8]} 6... c6 {[%clk 0:03:04.2]}
7. O-O {[%clk 0:03:02.4]} 7... Bg4 {[%clk 0:03:04.5]} 8. Qb3 {[%clk 0:02:58.7]}
8... b6 {[%clk 0:02:29.3]} 9. cxd5 {[%clk 0:02:46.6]} 9... cxd5 {[%clk
0:02:26.7]} 10. h3 {[%clk 0:02:46.7]} 10... Bxf3 {[%clk 0:02:25.6]} 11. Bxf3
{[%clk 0:02:47.6]} 11... e6 {[%clk 0:02:27.1]} 12. Bd2 {[%clk 0:02:47]} 12...
Nc6 {[%clk 0:02:26.2]} 13. Rfc1 {[%clk 0:02:46.7]} 13... Rc8 {[%clk 0:02:19.6]}
14. Be2 {[%clk 0:02:46.6]} 14... Na5 {[%clk 0:02:16.3]} 15. Qa4 {[%clk
0:02:43.1]} 15... Nc4 {[%clk 0:01:54]} 16. Bxc4 {[%clk 0:02:20.7]} 16... Rxc4
{[%clk 0:01:54]} 17. Qxa7 {[%clk 0:02:21.2]} 17... Qd6 {[%clk 0:01:37.3]} 18. b3
{[%clk 0:01:58.7]} 18... Rc7 {[%clk 0:01:25.8]} 19. Nb5 {[%clk 0:01:58.3]} 19...
Rxa7 {[%clk 0:01:26]} 20. Nxd6 {[%clk 0:01:58.8]} 20... Rd7 {[%clk 0:01:11.3]}
21. Bb4 {[%clk 0:01:33.1]} 21... Ra8 {[%clk 0:01:09.2]} 22. Nb5 {[%clk
0:01:23.3]} 22... Ne4 {[%clk 0:01:09.3]} 23. f3 {[%clk 0:01:20.1]} 23... Ng3
{[%clk 0:01:06.1]} 24. Kf2 {[%clk 0:01:20.4]} 24... Nf5 {[%clk 0:01:06.8]} 25.
g4 {[%clk 0:01:19.3]} 25... Nh4 {[%clk 0:01:04.5]} 26. a4 {[%clk 0:01:14.5]}
26... e5 {[%clk 0:00:59.3]} 27. Rc6 {[%clk 0:01:07.7]} 27... exd4 {[%clk
0:00:56.7]} 28. exd4 {[%clk 0:01:09.6]} 28... f5 {[%clk 0:00:47.9]} 29. Rxb6
{[%clk 0:01:02.4]} 29... fxg4 {[%clk 0:00:47.8]} 30. hxg4 {[%clk 0:01:02.7]}
30... Rf7 {[%clk 0:00:45.6]} 31. Kg3 {[%clk 0:00:53.7]} 31... g5 {[%clk
0:00:30.8]} 32. Rf1 {[%clk 0:00:47.1]} 32... Re8 {[%clk 0:00:31.4]} 33. Nd6
{[%clk 0:00:31.2]} 33... Re2 {[%clk 0:00:29.4]} 34. Nxf7 {[%clk 0:00:31.3]}
34... Kxf7 {[%clk 0:00:20.1]} 35. Rf2 {[%clk 0:00:24.5]} 35... Re3 {[%clk
0:00:15.9]} 36. Bc5 {[%clk 0:00:15.4]} 36... Re1 {[%clk 0:00:16.2]} 37. a5
{[%clk 0:00:13.6]} 37... Rg1+ {[%clk 0:00:13.9]} 38. Kh2 {[%clk 0:00:14.6]}
38... Ra1 {[%clk 0:00:15.3]} 39. a6 {[%clk 0:00:15.5]} 39... h5 {[%clk
0:00:14.3]} 40. Rb7+ {[%clk 0:00:15.6]} 40... Kg6 {[%clk 0:00:14.8]} 41. a7
{[%clk 0:00:16.7]} 41... hxg4 {[%clk 0:00:14.8]} 42. fxg4 {[%clk 0:00:18.3]} 1-0

[Event "*** MasterClass Titled Tuesday Blitz"]
[Site "Chess.com"]
[Date "2017.11.07"]
[Round "2"]
[White "oskariot"]
[Black "tigra"]
[Result "0-1"]
[WhiteElo "2493"]
[BlackElo "2653"]
[TimeControl "180+2"]
[EndTime "14:30:18 PST"]
[Termination "tigra won by resignation"]

1. c4 {[%clk 0:03:01.1]} 1... e5 {[%clk 0:02:59.8]} 2. g3 {[%clk 0:02:57.8]}
2... Nf6 {[%clk 0:03:00.2]} 3. Bg2 {[%clk 0:02:58.8]} 3... c6 {[%clk 0:03:01.8]}
4. d4 {[%clk 0:02:54.5]} 4... Bb4+ {[%clk 0:03:02.4]} 5. Bd2 {[%clk 0:02:47.7]}
5... Bxd2+ {[%clk 0:03:02.6]} 6. Qxd2 {[%clk 0:02:49.2]} 6... d6 {[%clk
0:03:04.3]} 7. Nc3 {[%clk 0:02:48.7]} 7... Qe7 {[%clk 0:03:01.4]} 8. Nf3 {[%clk
0:02:37.1]} 8... O-O {[%clk 0:02:51.3]} 9. O-O {[%clk 0:02:27.3]} 9... h6 {[%clk
0:02:46.5]} 10. dxe5 {[%clk 0:02:19.3]} 10... dxe5 {[%clk 0:02:47.3]} 11. Rfd1
{[%clk 0:02:12.2]} 11... e4 {[%clk 0:02:47.5]} 12. Nd4 {[%clk 0:01:57]} 12... e3
{[%clk 0:02:38]} 13. Qxe3 {[%clk 0:01:46.3]} 13... Qxe3 {[%clk 0:02:38.5]} 14.
fxe3 {[%clk 0:01:48.1]} 14... Re8 {[%clk 0:02:40.2]} 15. e4 {[%clk 0:01:37.9]}
15... Nbd7 {[%clk 0:02:40.3]} 16. Nf5 {[%clk 0:01:37.5]} 16... Nc5 {[%clk
0:02:36.6]} 17. Nd6 {[%clk 0:01:33.8]} 17... Re5 {[%clk 0:02:29.1]} 18. b4
{[%clk 0:01:25.4]} 18... Na6 {[%clk 0:02:28.1]} 19. a3 {[%clk 0:01:24.1]} 19...
Rb8 {[%clk 0:02:26.9]} 20. Rd2 {[%clk 0:01:07.5]} 20... Nc7 {[%clk 0:02:22.9]}
21. Rad1 {[%clk 0:01:03.6]} 21... Nce8 {[%clk 0:02:23.7]} 22. c5 {[%clk
0:00:50.7]} 22... Nxd6 {[%clk 0:02:21.3]} 23. Rxd6 {[%clk 0:00:49.6]} 23... Re8
{[%clk 0:02:14.7]} 24. e5 {[%clk 0:00:40.9]} 24... Ng4 {[%clk 0:02:06.1]} 25.
Rd8 {[%clk 0:00:38.9]} 25... Be6 {[%clk 0:02:05.3]} 26. Rxb8 {[%clk 0:00:30]}
26... Rxb8 {[%clk 0:02:05.4]} 27. b5 {[%clk 0:00:25.2]} 27... Nxe5 {[%clk
0:01:49.1]} 28. b6 {[%clk 0:00:25.6]} 28... axb6 {[%clk 0:01:47.1]} 29. cxb6
{[%clk 0:00:27.5]} 29... Ra8 {[%clk 0:01:32.6]} 30. a4 {[%clk 0:00:25.5]} 30...
Nd7 {[%clk 0:01:25.7]} 31. Rb1 {[%clk 0:00:23.3]} 31... Ra6 {[%clk 0:01:24.6]}
32. Ne4 {[%clk 0:00:24.6]} 32... Rxb6 {[%clk 0:01:17.3]} 33. Rxb6 {[%clk
0:00:24.8]} 33... Nxb6 {[%clk 0:01:19.2]} 34. Nc5 {[%clk 0:00:26.4]} 34... Bc8
{[%clk 0:01:10.4]} 35. Kf2 {[%clk 0:00:19.9]} 35... Nc4 {[%clk 0:01:05.8]} 36.
Be4 {[%clk 0:00:15.8]} 36... Kf8 {[%clk 0:01:06.1]} 37. Bd3 {[%clk 0:00:16.6]}
37... Ne5 {[%clk 0:01:04.5]} 38. a5 {[%clk 0:00:15.2]} 38... Ke7 {[%clk
0:01:04.8]} 39. Ke3 {[%clk 0:00:15.1]} 39... Ng4+ {[%clk 0:01:04.7]} 40. Kd4
{[%clk 0:00:16.4]} 40... Nxh2 {[%clk 0:01:05.7]} 41. Ne4 {[%clk 0:00:12.2]}
41... f5 {[%clk 0:00:58.1]} 42. Nc3 {[%clk 0:00:07.9]} 42... Kd6 {[%clk
0:00:57.5]} 43. e4 {[%clk 0:00:08.4]} 43... Nf3+ {[%clk 0:00:57.8]} 44. Ke3
{[%clk 0:00:07.9]} 44... Ne5 {[%clk 0:00:59.3]} 45. exf5 {[%clk 0:00:08]} 45...
Nxd3 {[%clk 0:01:00.2]} 46. Kxd3 {[%clk 0:00:09.9]} 46... Bxf5+ {[%clk
0:01:01.6]} 47. Kc4 {[%clk 0:00:11.4]} 47... g5 {[%clk 0:01:01]} 48. Ne2 {[%clk
0:00:12.5]} 48... h5 {[%clk 0:01:01.1]} 49. Nd4 {[%clk 0:00:13.9]} 49... Bg4
{[%clk 0:00:59.8]} 50. Kd3 {[%clk 0:00:13.5]} 50... h4 {[%clk 0:01:00.7]} 51.
gxh4 {[%clk 0:00:14.4]} 51... gxh4 {[%clk 0:01:02.6]} 52. Ke3 {[%clk 0:00:15.9]}
52... h3 {[%clk 0:01:03.2]} 53. Kf2 {[%clk 0:00:17.4]} 53... Kc5 {[%clk
0:01:03.9]} 54. Nb3+ {[%clk 0:00:14.6]} 54... Kb4 {[%clk 0:01:04.8]} 0-1